bitfinex/quotes_ETHUSD_20250702
["timestamp","ask_amount","ask_price","bid_price","bid_amount"]
[1751440612669,17.05823293,2448.1,2448.0,0.204]
[1751440612874,17.05823293,2448.1,2447.8,0.204]
[1751440613626,10.0,2448.1,2447.8,0.204]
[1751440614204,0.02,2448.2,2447.7,0.8067]
[1751440614315,0.02,2448.2,2448.1,0.204]
[1751440614514,0.99786708,2448.2,2448.1,0.204]
[1751440615203,12.62753112,2448.2,2448.1,0.204]
[1751440615401,10.99786708,2448.2,2448.1,0.204]
[1751440618925,12.6276416,2448.2,2448.1,0.204]
[1751440619301,10.99786708,2448.2,2448.1,0.204]
[1751440619702,2.62767113,2448.2,2448.1,0.204]
[1751440620631,0.99786708,2448.2,2448.1,0.204]
[1751440620800,2.62784147,2448.2,2448.1,0.204]
[1751440621203,0.99786708,2448.2,2448.1,0.204]
[1751440621505,0.99786708,2448.2,2448.1,1.0177]
[1751440621906,2.22040744,2448.2,2448.1,1.0177]
[1751440624507,0.99786708,2448.2,2448.1,1.0177]
[1751440626410,2.22040744,2448.2,2448.1,1.0177]
[1751440627352,2.22040744,2448.2,2448.1,1.32987]
[1751440627830,0.99786708,2448.2,2448.1,1.32987]
[1751440628313,2.22040744,2448.2,2448.1,1.32987]
[1751440629313,2.22040744,2448.2,2448.1,0.204]
[1751440630526,1.80296708,2448.2,2448.1,0.204]
[1751440632641,10.0,2448.1,2447.7,2.104]
[1751440632853,3.42652823,2448.0,2447.8,0.204]
[1751440633031,0.97786708,2447.9,2447.8,0.204]
[1751440634349,2.61029033,2447.9,2447.8,0.204]
[1751440635743,0.97786708,2447.9,2447.8,0.204]
[1751440636056,2.61040615,2447.9,2447.8,0.204]
[1751440636556,0.97786708,2447.9,2447.8,0.204]
[1751440636751,0.8251,2448.2,2447.8,0.204]
[1751440636932,1.63253003,2447.9,2447.8,0.204]
[1751440637125,2.61204805,2447.9,2447.8,0.204]
[1751440638955,0.97951802,2447.9,2447.8,0.204]
[1751440639423,1.52951802,2447.9,2447.8,0.204]
[1751440639655,2.92734933,2447.9,2447.6,0.204]
[1751440639826,2.6120132,2447.8,2447.6,0.204]
[1751440640153,0.97951802,2447.7,2447.6,0.204]
[1751440641329,1.81051802,2447.7,2447.6,0.204]
[1751440641924,0.97951802,2447.7,2447.6,0.204]
[1751440645055,2.6120132,2447.7,2447.6,0.204]
[1751440645237,3.09294451,2447.7,2447.6,0.204]
[1751440645652,2.6120132,2447.7,2447.6,0.204]
[1751440646663,0.97951802,2447.7,2447.4,0.204]
[1751440646859,2.6113843,2447.6,2447.4,0.204]
[1751440647089,0.97951802,2447.5,2447.4,0.204]
[1751440648152,2.20306635,2447.5,2447.4,0.204]
[1751440649096,10.23131802,2447.5,2447.4,0.204]
[1751440649401,13.14031299,2447.5,2447.3,0.01]
[1751440649568,0.97951802,2447.4,2447.3,0.01]
[1751440650990,2.61071884,2447.4,2447.3,0.01]
[1751440651291,2.91074829,2447.4,2447.3,0.01]
[1751440653390,3.41452827,2447.4,2447.3,0.01]
[1751440654293,2.91074829,2447.4,2447.3,0.01]
[1751440654484,8.45280468,2447.4,2447.3,0.01]
[1751440655196,21.65559973,2447.4,2447.3,0.01]
[1751440655399,22.06409973,2447.4,2447.3,0.01]
[1751440655566,27.53530468,2447.4,2447.3,0.01]
[1751440655760,27.53530468,2447.4,2446.9,0.01]
[1751440655761,0.55,2447.3,2446.9,0.01]
[1751440655965,2.95341229,2447.0,2446.9,0.01]
[1751440656166,2.30301802,2447.0,2446.9,0.01]
[1751440656484,3.93293031,2447.0,2446.9,0.01]
[1751440656678,13.93293031,2447.0,2446.9,0.01]
[1751440656895,16.31634226,2447.0,2446.9,0.01]
[1751440657297,17.94554811,2447.0,2446.9,0.01]
[1751440657474,16.31634226,2447.0,2446.9,0.01]
[1751440659981,18.7612107,2447.0,2446.9,0.01]
[1751440660323,16.31634226,2447.0,2446.9,0.01]
[1751440660906,18.7612107,2447.0,2446.9,0.01]
[1751440661217,26.6812107,2447.0,2446.9,0.01]
[1751440662999,24.23634226,2447.0,2446.9,0.01]
[1751440663198,26.67771068,2447.0,2446.9,0.01]
[1751440666717,24.23634226,2447.0,2446.9,0.01]
[1751440666898,24.44034226,2447.0,2446.9,0.01]
[1751440667500,20.7303497,2447.0,2446.9,0.01]
[1751440667829,20.5263497,2447.0,2446.9,0.01]
[1751440668499,20.9348497,2447.0,2446.9,0.01]
[1751440668934,3.0148497,2447.0,2446.9,0.01]
[1751440669517,1.38801802,2447.0,2446.9,0.01]
[1751440669924,2.60838734,2447.0,2446.9,0.01]
[1751440670122,1.38801802,2447.0,2446.9,0.01]
[1751440670328,2.60860758,2447.0,2446.9,0.01]
[1751440670722,0.97951802,2447.0,2446.9,0.7987]
[1751440674213,0.97741494,2447.0,2446.9,0.7987]
[1751440682046,0.02,2447.3,2447.2,4.08630271]
[1751440682233,0.99851885,2447.3,2447.2,9.617]
[1751440682655,0.99851885,2447.3,2447.2,9.821]
[1751440683320,0.99851885,2447.3,2447.2,0.204]
[1751440683546,0.99793619,2447.3,2447.2,0.204]
[1751440685357,2.21970486,2447.3,2447.2,0.204]
[1751440688048,2.21970486,2447.3,2447.2,0.9638]
[1751440688475,0.99793619,2447.3,2447.2,1.26768]
[1751440689783,0.99793619,2447.3,2447.2,3.0388]
[1751440693992,1.40643619,2447.3,2447.2,3.0388]
[1751440694170,0.99793619,2447.3,2447.2,3.0388]
[1751440695785,0.99793619,2447.3,2447.2,0.204]
[1751440696092,0.99793619,2447.3,2447.1,0.204]
[1751440696093,1.79863619,2447.3,2447.1,0.204]
[1751440696292,2.42167535,2447.2,2447.1,0.204]
[1751440696865,2.82673836,2447.2,2447.1,0.204]
[1751440697067,2.82673836,2447.2,2446.9,0.214]
[1751440697267,1.22371092,2447.0,2446.9,0.214]
[1751440697468,2.20164711,2447.0,2446.9,0.214]
[1751440697983,2.20164711,2447.0,2446.9,0.204]
[1751440698766,0.97793619,2447.0,2446.9,0.204]
[1751440699288,1.64683168,2447.3,2446.9,0.204]
[1751440699583,2.2036093,2447.2,2446.7,12.57689042]
[1751440699905,0.97938191,2447.1,2446.8,1.25768904]
[1751440700097,0.97938191,2447.0,2446.8,1.25768904]
[1751440700277,0.97938191,2446.9,2446.8,1.25768904]
[1751440700795,1.24422739,2447.3,2446.8,1.46168904]
[1751440701112,0.97957362,2447.2,2447.1,0.204]
[1751440701313,2.20404064,2447.2,2447.1,0.204]
[1751440701477,2.20421426,2447.2,2447.1,0.204]
[1751440701804,0.97957362,2447.2,2447.1,0.204]
[1751440703772,2.2046773,2447.2,2447.1,0.204]
[1751440704397,2.12090748,2447.2,2447.1,0.204]
[1751440704606,3.74773916,2447.2,2447.1,0.204]
[1751440704971,3.74773916,2447.2,2446.9,2.074]
[1751440705292,0.97985658,2447.1,2447.0,0.204]
[1751440706507,2.60668826,2447.1,2447.0,0.204]
[1751440714233,3.01518826,2447.1,2447.0,0.204]
[1751440714402,2.60668826,2447.1,2447.0,0.204]
[1751440717606,3.18908393,2447.1,2447.0,0.204]
[1751440718325,1.56225225,2447.1,2447.0,0.204]
[1751440718636,3.55825225,2447.1,2447.0,0.204]
[1751440724946,5.99962067,2447.1,2447.0,0.204]
[1751440725141,3.55825225,2447.1,2447.0,0.204]
[1751440725452,5.99962067,2447.1,2447.0,0.204]
[1751440727361,4.00362067,2447.1,2447.0,0.204]
[1751440728657,1.56225225,2447.1,2447.0,0.204]
[1751440729433,0.97985658,2447.1,2447.0,0.204]
[1751440731162,3.421225,2447.1,2447.0,0.204]
[1751440734674,9.83598221,2447.1,2447.0,0.204]
[1751440734885,0.55,2447.0,2446.4,0.8201]
[1751440735054,1.22678713,2446.6,2446.4,2.087]
[1751440735245,2.20664371,2446.5,2446.4,2.087]
[1751440735852,0.97985658,2446.5,2446.4,2.087]
[1751440736050,2.61557275,2446.5,2446.4,2.087]
[1751440738579,0.97985658,2446.5,2446.4,2.087]
[1751440738957,0.97985658,2446.5,2446.4,2.8824]
[1751440739180,0.97985658,2446.5,2446.4,3.17064]
[1751440739367,0.97985658,2446.5,2446.4,20.39903618]
[1751440739675,1.22533464,2447.0,2446.6,0.8063]
[1751440739975,0.98004385,2446.9,2446.6,0.8063]
[1751440740279,1.22533464,2447.0,2446.7,4.89343777]
[1751440740280,0.98004385,2446.8,2446.7,4.89343777]
[1751440740480,0.98004385,2446.8,2446.7,1.70438635]
[1751440741764,0.98004385,2446.8,2446.7,3.79138635]
[1751440743110,0.98004385,2446.8,2446.7,1.70438635]
[1751440743312,0.98004385,2446.8,2446.7,3.79138635]
[1751440743666,0.98004385,2446.8,2446.7,13.81018635]
[1751440743868,0.02,2447.1,2446.7,13.81018635]
[1751440744180,0.979792,2447.0,2446.7,13.81018635]
[1751440744485,0.979792,2446.9,2446.8,2.00962145]
[1751440744993,0.02,2447.1,2446.8,2.21362145]
[1751440745165,0.97963995,2447.0,2446.9,2.075]
[1751440745569,0.97963995,2447.0,2446.9,2.279]
[1751440749283,1.28234741,2447.0,2446.9,0.204]
[1751440749471,0.7853,2446.9,2446.7,0.204]
[1751440749682,2.20399762,2446.8,2446.7,0.204]
[1751440756714,12.20399762,2446.8,2446.7,0.204]
[1751440756911,12.61535612,2446.8,2446.7,0.204]
[1751440758319,14.2281299,2446.8,2446.7,0.204]
[1751440764803,12.61241373,2446.8,2446.7,0.204]
[1751440765315,14.24409658,2446.8,2446.7,0.204]
[1751440768934,12.61241373,2446.8,2446.7,0.204]
[1751440770745,2.63148023,2446.8,2446.7,0.204]
[1751440774671,2.63148023,2446.8,2446.7,1.0206]
[1751440776255,0.99963995,2446.8,2446.7,1.0206]
[1751440776936,1.77383995,2446.8,2446.7,0.204]
[1751440777940,3.40568023,2446.8,2446.7,0.204]
[1751440778256,1.77383995,2446.8,2446.7,0.204]
[1751440779294,4.22741421,2446.8,2446.7,0.204]
[1751440779660,3.45321421,2446.8,2446.7,0.204]
[1751440780570,4.66721563,2446.8,2446.7,0.204]
[1751440780773,3.45321421,2446.8,2446.7,0.204]
[1751440785913,3.86261421,2446.8,2446.7,0.204]
[1751440786089,3.45321421,2446.8,2446.7,0.204]
[1751440788712,0.99963995,2446.8,2446.7,0.204]
[1751440788878,3.4536251,2446.8,2446.7,0.204]
[1751440789504,0.99963995,2446.8,2446.7,0.204]
[1751440789688,3.45362702,2446.8,2446.7,0.204]
[1751440789909,3.4536245,2446.8,2446.7,0.204]
[1751440792885,4.66766695,2446.8,2446.7,0.204]
[1751440794607,2.2136824,2446.8,2446.7,0.204]
[1751440795008,2.2136824,2446.8,2446.5,0.01]
[1751440795009,9.17843961,2446.8,2446.5,0.01]
[1751440795325,4.20618441,2446.7,2446.5,0.01]
[1751440795531,0.97963995,2446.6,2446.5,0.01]
[1751440800614,2.61542114,2446.6,2446.5,0.01]
[1751440800814,0.97963995,2446.6,2446.5,0.01]
[1751440804516,0.97963995,2446.6,2446.5,1.0458]
[1751440804713,2.20630165,2446.6,2446.5,1.99935572]
[1751440805339,2.20630165,2446.6,2446.5,6.08682761]
[1751440805642,1.65570008,2446.8,2446.7,4.91893777]
[1751440805643,1.2466617,2446.8,2446.7,4.91893777]
[1751440805845,0.02,2446.8,2446.7,11.53769498]
[1751440806847,0.02,2446.8,2446.7,21.53769498]
[1751440807048,0.02,2446.8,2446.7,23.78008706]
[1751440812079,0.02,2446.8,2446.7,30.49708706]
[1751440812504,0.02,2447.1,2447.0,14.08663669]
[1751440812683,0.02,2447.1,2447.0,30.0892939]
[1751440812886,0.02,2447.1,2447.0,30.2932939]
[1751440813066,0.02,2447.1,2447.0,31.24684962]
[1751440830611,0.02,2447.1,2447.0,22.45984962]
[1751440830778,0.02,2447.1,2447.0,31.24184962]
[1751440833326,0.02,2447.1,2447.0,41.05884962]
[1751440833829,0.02,2447.3,2447.2,4.84930271]
[1751440834037,0.02,2447.8,2447.7,21.2632252]
[1751440834220,0.02,2447.8,2447.7,30.0442252]
[1751440834410,0.02,2447.8,2447.7,30.2482252]
[1751440848148,0.02,2448.1,2448.0,4.08496732]
[1751440848368,0.02,2448.1,2448.0,11.19846405]
[1751440848720,0.02,2448.1,2448.0,11.40246405]
[1751440850651,0.02,2448.1,2448.0,21.40246405]
[1751440853990,0.02,2448.1,2448.0,22.19276405]
[1751440857644,0.02,2448.1,2448.0,23.46646405]
[1751440863179,0.02,2448.1,2448.0,14.69746405]
[1751440863383,0.02,2448.1,2448.0,23.46446405]
[1751440867996,0.02,2448.1,2448.0,10.204]
[1751440868184,0.8131,2448.1,2448.0,2.266]
[1751440868388,0.8131,2448.1,2448.0,8.965]
[1751440870797,0.8131,2448.1,2448.0,8.975]
[1751440873203,0.8131,2448.1,2448.0,0.214]
[1751440873495,0.8131,2448.1,2448.0,8.975]
[1751440878500,1.79271193,2448.1,2448.0,2.276]
[1751440878804,1.79271193,2448.1,2448.0,8.973]
[1751440883803,0.99961193,2448.1,2448.0,8.973]
[1751440885730,0.99961193,2448.1,2448.0,0.214]
[1751440886047,0.99961193,2448.1,2448.0,8.974]
[1751440889233,0.99961193,2448.1,2448.0,8.973]
[1751440890125,0.99961193,2448.1,2448.0,0.214]
[1751440890301,0.99961193,2448.1,2448.0,8.972]
[1751440891215,1.82181193,2448.1,2448.0,8.972]
[1751440891797,0.99961193,2448.1,2448.0,9.6652]
[1751440892208,0.02,2448.1,2448.0,9.6652]
[1751440892424,0.99888006,2448.1,2448.0,9.6652]
[1751440892927,0.99888006,2448.1,2448.0,13.75016732]
[1751440893132,0.02,2448.1,2448.0,13.75016732]
[1751440893628,0.02,2448.1,2448.0,14.54086732]
[1751440894217,0.02,2448.1,2448.0,30.95679954]
[1751440895838,0.02,2448.1,2448.0,24.54086732]
[1751440896136,0.02,2448.1,2448.0,24.53786732]
[1751440897530,0.02,2448.1,2448.0,24.53386732]
[1751440898138,0.02,2448.1,2448.0,19.6582]
[1751440898624,0.02,2448.1,2448.0,9.6582]
[1751440898828,0.02,2448.1,2448.0,8.761]
[1751440899206,0.02,2448.1,2448.0,0.01]
[1751440899401,0.02,2448.1,2448.0,8.76]
[1751440901810,0.02,2448.1,2448.0,8.964]
[1751440903244,0.02,2448.1,2448.0,13.04896732]
[1751440903425,0.02,2448.1,2448.0,15.14798019]
[1751440905643,0.02,2448.1,2448.0,11.06301287]
[1751440905841,0.02,2448.1,2448.0,15.14798019]
[1751440906456,0.02,2448.1,2448.0,11.06301287]
[1751440906615,0.02,2448.1,2448.0,8.964]
[1751440908049,0.02,2448.1,2448.0,13.04896732]
[1751440908443,0.02,2448.1,2448.0,8.964]
[1751440908957,0.02,2448.1,2448.0,0.214]
[1751440909154,0.02,2448.1,2448.0,8.962]
[1751440910152,0.02,2448.1,2448.0,2.272]
[1751440910447,0.02,2448.1,2448.0,8.962]
[1751440911539,0.02,2448.1,2448.0,0.214]
[1751440911716,0.02,2448.1,2448.0,8.962]
[1751440912632,0.02,2448.1,2448.0,8.90507359]
[1751440914632,0.02,2448.1,2448.0,12.99004091]
[1751440915353,0.02,2448.1,2448.0,4.28896732]
[1751440915652,0.02,2448.1,2448.0,13.03596732]
[1751440916355,0.02,2448.1,2448.0,8.951]
[1751440918825,0.02,2448.1,2448.0,8.95]
[1751440921473,1.00058247,2448.1,2448.0,8.95]
[1751440921989,1.00058247,2448.1,2448.0,13.03496732]
[1751440922149,0.02,2448.1,2448.0,15.57500876]
[1751440923880,0.02,2448.1,2448.0,25.57500876]
[1751440928383,0.02,2448.1,2448.0,31.99094098]
[1751440928587,0.02,2448.1,2448.0,25.57500876]
[1751440930387,0.02,2448.1,2448.0,25.58500876]
[1751440932689,0.02,2448.1,2448.0,16.83900876]
[1751440932892,0.02,2448.1,2448.0,25.57700876]
[1751440935484,0.02,2448.1,2448.0,25.57600876]
[1751440936090,0.02,2448.1,2448.0,16.83900876]
[1751440936259,0.02,2448.1,2448.0,24.74800876]
[1751440936889,0.02,2448.1,2448.0,16.01100876]
[1751440937087,0.02,2448.1,2448.0,24.74800876]
[1751440938796,0.02,2448.1,2448.0,16.01100876]
[1751440939098,0.02,2448.1,2448.0,24.74700876]
[1751440939305,0.02,2448.1,2448.0,14.29896732]
[1751440939513,0.02,2448.1,2448.0,23.03496732]
[1751440940404,0.02,2448.1,2448.0,18.95]
[1751440940606,0.02,2448.1,2448.0,23.03496732]
[1751440940776,0.02,2448.1,2448.0,14.29896732]
[1751440941075,0.02,2448.1,2448.0,23.03496732]
[1751440941599,0.02,2448.1,2448.0,18.95]
[1751440942004,0.02,2448.1,2448.0,10.214]
[1751440942207,0.02,2448.1,2448.0,18.95]
[1751440942522,0.02,2448.1,2448.0,23.03496732]
[1751440942800,0.02,2448.1,2448.0,18.95]
[1751440942975,1.00064575,2448.1,2448.0,18.95]
[1751440943392,1.00064575,2448.1,2448.0,23.03496732]
[1751440945122,0.02,2448.1,2448.0,23.03496732]
[1751440945813,0.02,2448.1,2448.0,18.949]
[1751440946620,0.02,2448.1,2448.0,18.948]
[1751440947796,0.02,2448.1,2448.0,23.03296732]
[1751440948122,0.02,2448.1,2448.0,18.948]
[1751440949217,1.00068496,2448.1,2448.0,18.948]
[1751440949417,0.02,2448.1,2448.0,18.948]
[1751440949620,1.00071329,2448.1,2448.0,18.948]
[1751440950389,1.00071329,2448.1,2448.0,23.03296732]
[1751440952906,0.02,2448.1,2448.0,18.948]
[1751440953103,0.02,2448.1,2448.0,18.947]
[1751440954511,0.02,2448.1,2448.0,10.214]
[1751440954721,1.00071534,2448.1,2448.0,8.946]
[1751440955303,1.00071534,2448.1,2448.0,2.268]
[1751440955600,1.00071534,2448.1,2448.0,8.946]
[1751440956944,1.00071534,2448.1,2448.0,2.268]
[1751440957139,1.00071534,2448.1,2448.0,8.946]
[1751440960653,1.00071534,2448.1,2448.0,0.214]
[1751440960842,1.00071534,2448.1,2448.0,8.941]
[1751440962244,0.02,2448.1,2448.0,8.941]
[1751440963272,0.02,2448.1,2448.0,13.02596732]
[1751440963427,0.02,2448.1,2448.0,25.4596689]
[1751440963625,0.02,2448.1,2448.0,31.87560112]
[1751440963839,0.02,2448.1,2448.0,32.68930112]
[1751440964244,0.02,2448.1,2448.0,26.2733689]
[1751440982989,0.02,2448.1,2448.0,32.68930112]
[1751440983672,0.02,2448.1,2448.0,42.50330112]
[1751440984349,0.02,2448.1,2448.0,42.49630112]
[1751440984549,0.02,2448.1,2448.0,42.49530112]
[1751440984789,0.02,2448.1,2448.0,27.3603689]
[1751440984990,0.02,2448.1,2448.0,35.2656689]
[1751440985196,0.02,2448.1,2448.0,26.5466689]
[1751440985485,0.02,2448.1,2448.0,35.2656689]
[1751440985653,0.02,2448.1,2448.0,26.5466689]
[1751440985854,0.02,2448.1,2448.0,35.2656689]
[1751440986265,0.02,2448.1,2448.0,26.5466689]
[1751440986465,0.02,2448.1,2448.0,20.028]
[1751440986650,0.02,2448.1,2448.0,28.747]
[1751440987555,0.02,2448.1,2448.0,22.077]
[1751440987757,0.02,2448.1,2448.0,28.747]
[1751440988580,0.02,2448.1,2448.0,28.746]
[1751440989894,0.02,2448.1,2448.0,32.83096732]
[1751440990210,0.02,2448.1,2448.0,28.746]
[1751440990897,0.3553,2448.3,2448.0,18.746]
[1751440991068,0.3553,2448.3,2448.1,10.0]
[1751440991417,0.3553,2448.3,2448.2,8.918]
[1751440991716,1.33579202,2448.3,2448.2,8.918]
[1751440991916,1.33579202,2448.3,2448.2,0.204]
[1751440992086,1.33579202,2448.3,2448.2,8.918]
[1751440993623,0.98049202,2448.3,2448.2,13.0026336]
[1751440993781,0.02,2448.4,2448.2,13.0026336]
[1751440994524,1.56799783,2448.7,2448.2,13.0026336]
[1751440994810,0.98047718,2448.6,2448.2,12.7986336]
[1751440995016,0.98047718,2448.5,2448.2,12.7986336]
[1751440995205,1.56799783,2448.7,2448.4,0.204]
[1751440995513,1.56799783,2448.7,2448.5,6.668]
[1751440995514,0.98046787,2448.6,2448.5,6.668]
[1751440995718,0.98046787,2448.6,2448.5,6.872]
[1751440996821,0.48046787,2448.6,2448.5,6.872]
[1751440997428,0.48046787,2448.6,2448.5,10.95613314]
[1751440997613,0.48046787,2448.6,2448.5,12.05176115]
[1751440998827,0.02,2448.8,2448.6,4.08383377]
[1751440999019,0.02,2448.8,2448.7,10.75079956]
[1751440999217,0.02,2448.8,2448.7,10.95479956]
[1751441001112,0.02,2448.8,2448.7,6.871]
[1751441001632,0.3285,2449.0,2448.7,6.871]
[1751441001833,0.3285,2449.0,2448.9,0.204]
[1751441002030,0.3285,2449.0,2448.9,6.87]
[1751441003206,0.02,2449.1,2448.9,6.87]
[1751441004245,0.02,2449.1,2448.9,0.204]
[1751441004545,0.02,2449.1,2449.0,8.71]
[1751441004847,0.7881,2449.0,2448.9,2.249]
[1751441005047,7.20403222,2449.0,2448.9,8.914]
[1751441006320,7.20403222,2449.0,2448.9,6.869]
[1751441007148,7.20403222,2449.0,2448.9,0.204]
[1751441007329,8.15650114,2449.0,2448.9,0.204]
[1751441009017,9.13576812,2449.0,2448.9,0.204]
[1751441009219,2.7198359,2449.0,2448.9,0.204]
[1751441010028,1.76736698,2449.0,2448.9,0.204]
[1751441010857,0.97926698,2449.0,2448.9,0.204]
[1751441012431,0.98926698,2449.0,2448.9,0.204]
[1751441012827,0.98926698,2449.0,2448.9,8.912]
[1751441013022,1.74456698,2449.0,2448.9,2.249]
[1751441017868,1.74456698,2449.0,2448.9,0.204]
[1751441018055,1.74456698,2449.0,2448.9,2.249]
[1751441021171,1.74456698,2449.0,2448.9,0.204]
[1751441021354,1.74456698,2449.0,2448.9,2.245]
[1751441026451,1.74456698,2449.0,2448.9,0.204]
[1751441026652,1.74456698,2449.0,2448.9,2.245]
[1751441027470,0.98926698,2449.0,2448.9,2.245]
[1751441036096,0.98926698,2449.0,2448.9,2.265]
[1751441038007,0.98926698,2449.0,2448.9,0.224]
[1751441038200,1.83768509,2449.0,2448.9,2.265]
[1751441040299,0.98926698,2449.0,2448.9,2.265]
[1751441040705,0.98926698,2449.0,2448.9,0.224]
[1751441040888,0.98926698,2449.0,2448.9,2.265]
[1751441045710,4.87465298,2449.2,2448.9,2.265]
[1751441047311,2.47414446,2449.3,2448.9,2.265]
[1751441047885,0.01,2449.2,2448.9,2.265]
[1751441048486,0.3209,2449.2,2448.9,2.265]
[1751441050608,0.01,2449.2,2449.1,0.204]
[1751441051583,5.23097668,2449.4,2449.1,0.204]
[1751441051777,1.31509767,2449.3,2449.1,0.204]
[1751441052316,2.45414446,2449.4,2449.0,2.8525]
[1751441052634,2.45414446,2449.4,2449.3,0.7628]
[1751441052924,2.45414446,2449.8,2449.3,11.49951779]
[1751441053083,2.45414446,2449.8,2449.5,0.7797]
[1751441053279,2.45414446,2449.8,2449.6,2.037]
[1751441053479,2.45414446,2449.9,2449.6,2.037]
[1751441054415,0.02,2450.0,2449.6,2.037]
[1751441054711,1.22350359,2449.9,2449.6,2.037]
[1751441055025,1.24350359,2450.0,2449.6,2.037]
[1751441055231,2.16085395,2450.0,2449.6,2.037]
[1751441055430,0.93735036,2450.0,2449.6,2.037]
[1751441056484,0.02,2450.0,2449.6,2.037]
[1751441057197,0.02,2450.0,2449.8,4.08196587]
[1751441057402,0.02,2450.0,2449.9,11.56409925]
[1751441057604,0.02,2450.0,2449.9,17.98003147]
[1751441057810,0.02,2450.0,2449.9,27.98003147]
[1751441061499,0.01,2450.1,2450.0,4.08163265]
[1751441061726,0.01,2450.1,2450.0,14.86463265]
[1751441061898,1e-08,2450.1,2450.0,14.86463265]
[1751441062097,0.1570041,2451.0,2450.9,4.86313382]
[1751441062303,0.1570041,2451.0,2450.9,9.469]
[1751441062697,0.1570041,2451.0,2450.9,9.6722]
[1751441063104,0.1670041,2451.0,2450.9,9.6722]
[1751441064543,0.1670041,2451.0,2450.9,8.8882]
[1751441064732,0.1670041,2451.0,2450.9,8.8872]
[1751441066048,0.1670041,2451.0,2450.9,2.2392]
[1751441066247,0.1670041,2451.0,2450.9,8.8872]
[1751441072750,0.1670041,2451.0,2450.9,2.2392]
[1751441072963,0.82929773,2451.0,2450.9,2.2392]
[1751441073330,0.02,2450.9,2450.4,9.809]
[1751441073655,0.02,2450.9,2450.7,2.036]
[1751441073851,0.02,2450.9,2450.8,0.00421522]
[1751441074044,11.91724977,2450.9,2450.8,0.00421522]
[1751441074451,1.91724977,2450.9,2450.8,0.00421522]
[1751441074635,6.43593222,2450.9,2450.8,0.00421522]
[1751441075523,7.40657994,2450.9,2450.8,0.00421522]
[1751441081379,8.63008353,2450.9,2450.8,0.00421522]
[1751441082377,7.40657994,2450.9,2450.8,0.00421522]
[1751441083451,9.02432604,2450.9,2450.8,0.00421522]
[1751441083654,22.06742286,2450.9,2450.8,0.00421522]
[1751441083860,22.61742286,2450.9,2450.8,0.00421522]
[1751441084260,20.99967676,2450.9,2450.8,0.00421522]
[1751441085470,23.45382122,2450.9,2450.8,0.00421522]
[1751441087579,23.44344549,2450.9,2450.8,0.00421522]
[1751441088187,20.99967676,2450.9,2450.8,0.00421522]
[1751441088383,23.44344583,2450.9,2450.8,0.00421522]
[1751441088950,20.99967676,2450.9,2450.8,0.00421522]
[1751441092482,23.44259604,2450.9,2450.8,0.00421522]
[1751441093678,23.85169604,2450.9,2450.8,0.00421522]
[1751441093980,23.44259604,2450.9,2450.8,0.00421522]
[1751441096487,20.99967676,2450.9,2450.8,0.00421522]
[1751441097388,23.44453357,2450.9,2450.8,0.00421522]
[1751441097686,20.99967676,2450.9,2450.8,0.00421522]
[1751441098249,23.44476347,2450.9,2450.8,0.00421522]
[1751441098487,20.99967676,2450.9,2450.8,0.00421522]
[1751441098785,23.44505372,2450.9,2450.8,0.00421522]
[1751441099299,20.99967676,2450.9,2450.8,0.00421522]
[1751441099789,0.02,2450.7,2450.0,0.02]
[1751441099976,0.02,2449.9,2449.3,0.7551]
[1751441100157,6.41593222,2449.5,2449.3,0.7551]
[1751441100483,7.38657994,2449.7,2449.3,0.7551]
[1751441100653,6.41593222,2449.7,2449.3,0.7551]
[1751441102494,10.0,2449.8,2449.3,0.7551]
[1751441102686,0.97795254,2449.7,2449.4,0.83]
[1751441102883,10.0,2449.9,2449.4,0.83]
[1751441103095,7.39388333,2449.8,2449.4,0.83]
[1751441103387,6.41593222,2449.8,2449.4,0.83]
[1751441104186,6.41593222,2449.6,2449.4,0.83]
[1751441106391,6.41593222,2449.8,2449.4,0.83]
[1751441107193,7.92,2449.9,2449.4,0.83]
[1751441107395,0.97761648,2449.8,2449.4,0.83]
[1751441107606,7.92,2449.9,2449.4,0.83]
[1751441107765,0.97759969,2449.8,2449.4,0.83]
[1751441107967,7.92,2449.9,2449.4,0.83]
[1751441108305,7.39352637,2449.8,2449.4,0.83]
[1751441108478,6.41593222,2449.8,2449.4,0.83]
[1751441109732,6.41593222,2449.8,2449.6,0.204]
[1751441111195,7.92,2449.9,2449.6,0.204]
[1751441111614,0.9775064,2449.8,2449.6,0.204]
[1751441111890,7.92,2449.9,2449.6,0.204]
[1751441112091,0.9775235,2449.8,2449.6,0.204]
[1751441112291,7.92,2449.9,2449.6,0.204]
[1751441112506,0.97758118,2449.8,2449.6,0.204]
[1751441112793,16.61993222,2450.0,2449.7,0.7653]
[1751441112794,0.204,2450.0,2449.7,0.7653]
[1751441113149,0.97757445,2449.9,2449.7,0.9693]
[1751441113302,0.97757445,2449.8,2449.7,0.9693]
[1751441113803,12.66869618,2450.1,2449.7,0.9693]
[1751441114530,16.643,2450.3,2449.7,0.7653]
[1751441114733,23.05893222,2450.3,2450.0,0.204]
[1751441114905,6.41593222,2450.1,2450.0,0.204]
[1751441118945,8.04502958,2450.1,2450.0,0.204]
[1751441119084,9.02248799,2450.1,2450.0,0.204]
[1751441120346,2.60655577,2450.1,2450.0,0.204]
[1751441125365,0.97745841,2450.1,2450.0,0.204]
[1751441127032,1.87405685,2450.1,2450.0,0.204]